fUST/lending_fUST_20250627
["ID","MTS","AMOUNT","RATE_DAILY","PERIOD"]
[368062742,1751013585601,-460.0,0.00019178,2]
[368062743,1751013585624,-460.0,0.00019178,2]
[368062744,1751013585647,-460.0,0.00019178,2]
[368062745,1751013585671,-1702.37,0.00019178,2]
[368062746,1751013585693,-460.0,0.00019178,2]
[368062747,1751013585725,-460.0,0.00019178,2]
[368062748,1751013585751,-499.55,0.00019178,2]
[368062749,1751013585774,-1070.01,0.00019178,2]
[368062750,1751013585797,-460.0,0.00019178,2]
[368062751,1751013585819,-460.0,0.00019178,2]
[368062752,1751013585842,-460.0,0.00019178,2]
[368062753,1751013585866,-460.0,0.00019178,2]
[368062754,1751013585889,-460.0,0.00019178,2]
[368062755,1751013585911,-895.08292281,0.00019178,2]
[368062793,1751013661542,-4246.18720516,0.00018796,9]
[368062794,1751013661563,-242.05947121,0.00018886,2]
[368062795,1751013661585,-1080.75332363,0.00018986,9]
[368063028,1751013895434,155.943859,0.00023,30]
[368063029,1751013895742,155.943859,0.00023,30]
[368063044,1751013981186,5000.0,0.0001811,9]
[368063070,1751014031415,-1457.02867041,0.00018058,2]
[368063071,1751014034073,-1027.31116315,0.00018058,2]
[368063074,1751014045135,-2515.66016644,0.00018058,2]
[368063075,1751014045161,-249.97924858,0.0001824,2]
[368063076,1751014045190,-243.0394471,0.000189,2]
[368063215,1751014167154,-5000.0,0.00018711,2]
[368063216,1751014167175,-242.05947121,0.000188,2]
[368063217,1751014167197,-66.2132715,0.000189,2]
[368063218,1751014167218,-673.0,0.00019,2]
[368063219,1751014167244,-577.55484458,0.00019078,2]
[368063220,1751014167277,-500.0,0.00019164,2]
[368063221,1751014167303,-1200.0,0.00019167,2]
[368063222,1751014167326,-367.69,0.00019168,2]
[368063223,1751014167347,-367.69,0.00019168,2]
[368063224,1751014167369,-300.0,0.00019174,2]
[368063225,1751014167390,-294.0,0.00019175,2]
[368063226,1751014167411,-300.0,0.00019176,2]
[368063227,1751014167432,-276.0,0.00019176,2]
[368063228,1751014167454,-1489.5570251,0.00019176,2]
[368063229,1751014167474,-460.0,0.00019178,2]
[368063230,1751014167495,-618.09,0.00019178,2]
[368063231,1751014167516,-223.9003636,0.00019178,2]
[368063232,1751014167538,-346.49481416,0.00019178,2]
[368063233,1751014167558,-460.0,0.00019178,2]
[368063234,1751014167579,-460.0,0.00019178,2]
[368063235,1751014167599,-461.01459285,0.00019178,2]
[368063236,1751014167619,-460.73542198,0.00019178,2]
[368063237,1751014167639,-170.57542917,0.00019178,2]
[368063238,1751014167663,-540.02375141,0.00019178,2]
[368063239,1751014167685,-486.29881809,0.00019178,2]
[368063314,1751014232300,-480.0,0.00018986,2]
[368063316,1751014232312,-4520.0,0.00018986,2]
[368063318,1751014232321,-500.0,0.00019164,2]
[368063320,1751014232330,-300.0,0.00019177,2]
[368063322,1751014232340,-300.0,0.00019177,2]
[368063324,1751014232350,-1200.0,0.00019177,2]
[368063326,1751014232359,-0.31118191,0.00019178,2]
[368063328,1751014232369,-460.0,0.00019178,2]
[368063330,1751014232378,-375.13010161,0.00019178,2]
[368063332,1751014232389,-460.0,0.00019178,2]
[368063334,1751014232398,-460.0,0.00019178,2]
[368063336,1751014232408,-460.0,0.00019178,2]
[368063338,1751014232417,-460.0,0.00019178,2]
[368063340,1751014232427,-460.0,0.00019178,2]
[368063341,1751014232437,-460.0,0.00019178,2]
[368063343,1751014232447,-466.53006277,0.00019178,2]
[368063345,1751014232456,-460.0,0.00019178,2]
[368063347,1751014232466,-460.0,0.00019178,2]
[368063349,1751014232475,-460.0,0.00019178,2]
[368063351,1751014232485,-460.0,0.00019178,2]
[368063353,1751014232495,-460.0,0.00019178,2]
[368063355,1751014232505,-460.0,0.00019178,2]
[368063357,1751014232515,-443.76641053,0.00019178,2]
[368063359,1751014232525,-460.0,0.00019178,2]
[368063361,1751014232534,-156.06,0.00019178,2]
[368063363,1751014232543,-460.0,0.00019178,2]
[368063365,1751014232553,-460.0,0.00019178,2]
[368063367,1751014232563,-460.0,0.00019178,2]
[368063369,1751014232572,-460.0,0.00019178,2]
[368063371,1751014232581,-460.0,0.00019178,2]
[368063373,1751014232590,-500.0,0.00019178,2]
[368063394,1751014232790,-500.0,0.00019178,2]
[368063396,1751014232800,-460.0,0.00019178,2]
[368063398,1751014232810,-384.13,0.00019178,2]
[368063400,1751014232819,-460.0,0.00019178,2]
[368063402,1751014232830,-460.0,0.00019178,2]
[368063404,1751014232840,-460.0,0.00019178,2]
[368063406,1751014232849,-503.64734181,0.00019178,2]
[368063408,1751014232858,-463.98790852,0.00019178,2]
[368063410,1751014232868,-460.0,0.00019178,2]
[368063412,1751014232877,-460.0,0.00019178,2]
[368063414,1751014232886,-466.03665853,0.00019178,2]
[368063417,1751014232896,-460.0,0.00019178,2]
[368063419,1751014232905,-460.0,0.00019178,2]
[368063421,1751014232915,-460.0,0.00019178,2]
[368063422,1751014232924,-460.0,0.00019178,2]
[368063425,1751014232935,-460.0,0.00019178,2]
[368063427,1751014232945,-460.0,0.00019178,2]
[368063429,1751014232955,-460.0,0.00019178,2]
[368063431,1751014232964,-460.0,0.00019178,2]
[368063433,1751014232973,-460.0,0.00019178,2]
[368063435,1751014232983,-460.0,0.00019178,2]
[368063437,1751014232992,-460.0,0.00019178,2]
[368063439,1751014233002,-460.0,0.00019178,2]
[368063441,1751014233013,-460.0,0.00019178,2]
[368063443,1751014233022,-460.0,0.00019178,2]
[368063445,1751014233031,-460.0,0.00019178,2]
[368063447,1751014233041,-460.0,0.00019178,2]
[368063449,1751014233051,-500.0,0.00019178,2]
[368063451,1751014233060,-460.0,0.00019178,2]
[368063452,1751014233071,-460.0,0.00019178,2]
[368063454,1751014233080,-638.32,0.00019178,2]
[368063456,1751014233090,-515.76206434,0.00019178,2]
[368063458,1751014233101,-460.0,0.00019178,2]
[368063460,1751014233110,-460.0,0.00019178,2]
[368063462,1751014233121,-460.0,0.00019178,2]
[368063464,1751014233131,-460.0,0.00019178,2]
[368063466,1751014233142,-460.0,0.00019178,2]
[368063468,1751014233151,-460.0,0.00019178,2]
[368063470,1751014233162,-460.0,0.00019178,2]
[368063472,1751014233173,-460.0,0.00019178,2]
[368063474,1751014233182,-460.0,0.00019178,2]
[368063476,1751014233192,-460.0,0.00019178,2]
[368063478,1751014233202,-460.0,0.00019178,2]
[368063480,1751014233211,-460.0,0.00019178,2]
[368063481,1751014233221,-472.8720804,0.00019178,2]
[368063482,1751014233231,-460.0,0.00019178,2]
[368063484,1751014233241,-460.0,0.00019178,2]
[368063486,1751014233251,-460.0,0.00019178,2]
[368063488,1751014233261,-460.0,0.00019178,2]
[368063490,1751014233271,-405.30714718,0.00019178,2]
[368063492,1751014233281,-460.0,0.00019178,2]
[368063494,1751014233292,-1700.78,0.00019178,2]
[368063495,1751014233304,-1026.71,0.00019178,2]
[368063497,1751014233314,-460.0,0.00019178,2]
[368063499,1751014233324,-460.0,0.00019178,2]
[368063501,1751014233336,-328.84471088,0.00019178,2]
[368063503,1751014233345,-460.0,0.00019178,2]
[368063505,1751014233354,-966.02,0.00019178,2]
[368063507,1751014233364,-404.37876923,0.00019178,2]
[368063508,1751014233374,-460.0,0.00019178,2]
[368063510,1751014233385,-460.0,0.00019178,2]
[368063512,1751014233395,-460.0,0.00019178,2]
[368063515,1751014233405,-486.13,0.00019178,2]
[368063517,1751014233414,-786.82,0.00019178,2]
[368063518,1751014233424,-460.0,0.00019178,2]
[368063520,1751014233433,-460.0,0.00019178,2]
[368063522,1751014233442,-460.0,0.00019178,2]
[368063524,1751014233452,-460.0,0.00019178,2]
[368063526,1751014233462,-460.0,0.00019178,2]
[368063528,1751014233472,-3869.97,0.00019178,2]
[368063530,1751014233481,-1671.8,0.00019178,2]
[368063532,1751014233491,-460.0,0.00019178,2]
[368063535,1751014233502,-563.77,0.00019178,2]
[368063537,1751014233511,-586.39,0.00019178,2]
[368063538,1751014233521,-460.0,0.00019178,2]
[368063540,1751014233530,-453.07188305,0.00019178,2]
[368063542,1751014233540,-254.56665283,0.00019178,2]
[368063544,1751014233550,-189.53218761,0.00019178,2]
[368063547,1751014233565,-443.81781239,0.00019178,2]
[368063549,1751014233575,-56.77719761,0.00019178,2]
[368063551,1751014233587,-426.07280239,0.00019178,2]
[368063553,1751014233597,-460.0,0.00019178,2]
[368063555,1751014233608,-3453.57,0.00019178,2]
[368063557,1751014233617,-460.0,0.00019178,2]
[368063559,1751014233627,-460.0,0.00019178,2]
[368063561,1751014233637,-1237.61,0.00019178,2]
[368063563,1751014233647,-460.0,0.00019178,2]
[368063565,1751014233656,-460.0,0.00019178,2]
[368063567,1751014233666,-637.17,0.00019178,2]
[368063569,1751014233676,-541.7,0.00019178,2]
[368063572,1751014233685,-460.0,0.00019178,2]
[368063574,1751014233696,-460.0,0.00019178,2]
[368063576,1751014233705,-328.90576635,0.00019178,2]
[368063578,1751014233715,-460.0,0.00019178,2]
[368063580,1751014233724,-823.26312863,0.00019178,2]
[368063940,1751014238236,-6.50687137,0.00019178,2]
[368063942,1751014238246,-539.98,0.00019178,2]
[368063944,1751014238256,-1994.54,0.00019178,2]
[368063946,1751014238265,-460.0,0.00019178,2]
[368063947,1751014238274,-460.0,0.00019178,2]
[368063949,1751014238284,-460.0,0.00019178,2]
[368063951,1751014238297,-3690.44,0.00019178,2]
[368063953,1751014238306,-460.0,0.00019178,2]
[368063955,1751014238315,-460.0,0.00019178,2]
[368063956,1751014238324,-460.0,0.00019178,2]
[368063959,1751014238334,-460.0,0.00019178,2]
[368063961,1751014238354,-719.85,0.00019178,2]
[368063963,1751014238364,-719.85,0.00019178,2]
[368063965,1751014238375,-719.85,0.00019178,2]
[368063967,1751014238384,-497.34,0.00019178,2]
[368063969,1751014238395,-1155.72,0.00019178,2]
[368063971,1751014238404,-460.0,0.00019178,2]
[368063973,1751014238414,-460.0,0.00019178,2]
[368063975,1751014238424,-460.0,0.00019178,2]
[368063976,1751014238434,-486.11,0.00019178,2]
[368063978,1751014238444,-460.0,0.00019178,2]
[368063980,1751014238454,-460.0,0.00019178,2]
[368063982,1751014238464,-2940.89,0.00019178,2]
[368063984,1751014238473,-674.15,0.00019178,2]
[368063986,1751014238483,-460.0,0.00019178,2]
[368063988,1751014238493,-3831.23,0.00019178,2]
[368063990,1751014238502,-460.0,0.00019178,2]
[368063991,1751014238512,-460.0,0.00019178,2]
[368063993,1751014238522,-460.0,0.00019178,2]
[368063995,1751014238531,-653.95,0.00019178,2]
[368063997,1751014238542,-280.76,0.00019178,2]
[368063999,1751014238552,-545.9,0.00019178,2]
[368064001,1751014238561,-7274.1,0.00019178,2]
[368064003,1751014238571,-460.0,0.00019178,2]
[368064005,1751014238581,-460.0,0.00019178,2]
[368064006,1751014238591,-2330.44,0.00019178,2]
[368064008,1751014238600,-460.0,0.00019178,2]
[368064010,1751014238610,-460.0,0.00019178,2]
[368064012,1751014238620,-460.0,0.00019178,2]
[368064014,1751014238629,-460.0,0.00019178,2]
[368064016,1751014238639,-460.0,0.00019178,2]
[368064018,1751014238648,-469.10159919,0.00019178,2]
[368064020,1751014238658,-460.0,0.00019178,2]
[368064022,1751014238667,-525.38,0.00019178,2]
[368064024,1751014238677,-2777.8,0.00019178,2]
[368064026,1751014238686,-460.0,0.00019178,2]
[368064028,1751014238696,-460.0,0.00019178,2]
[368064029,1751014238705,-1803.2,0.00019178,2]
[368064031,1751014238715,-464.78014062,0.00019178,2]
[368064033,1751014238724,-460.0,0.00019178,2]
[368064035,1751014238734,-187.2774326,0.00019178,2]
[368064037,1751014238744,-228.181572,0.00019178,2]
[368064039,1751014238755,-719.85,0.00019199,2]
[368064041,1751014238767,-367.69,0.00019319,2]
[368064043,1751014238776,-719.85,0.00019329,2]
[368064045,1751014238787,-719.85,0.00019329,2]
[368064047,1751014238796,-719.85,0.00019329,2]
[368064048,1751014238806,-719.85,0.00019329,2]
[368064050,1751014238818,-719.85,0.00019329,2]
[368064052,1751014238829,-100000.0,0.00019329,2]
[368064054,1751014238838,-4005.91213836,0.00019352,2]
[368064056,1751014238848,-386.16,0.00019442,3]
[368064058,1751014238857,-500.0,0.0001945,2]
[368064060,1751014238867,-500.0,0.0001945,2]
[368064062,1751014238876,-500.0,0.0001945,2]
[368064064,1751014238886,-500.0,0.0001945,2]
[368064066,1751014238895,-500.0,0.0001945,2]
[368064068,1751014238905,-500.0,0.0001945,2]
[368064070,1751014238914,-500.0,0.0001945,2]
[368064071,1751014238924,-500.0,0.0001945,2]
[368064073,1751014238934,-270.08030583,0.0001945,2]
[368064075,1751014238943,-346.59124386,0.0001945,2]
[368064077,1751014238953,-500.0,0.0001945,2]
[368064079,1751014238963,-500.0,0.0001945,2]
[368064081,1751014238972,-719.85,0.0001945,2]
[368064083,1751014238982,-719.85,0.0001945,2]
[368064085,1751014238992,-500.0,0.0001945,2]
[368064087,1751014239001,-548.07480906,0.0001945,2]
[368064089,1751014239014,-399.64956192,0.0001945,2]
[368064090,1751014239023,-460.0,0.00019451,2]
[368064092,1751014239032,-460.0,0.00019451,2]
[368064094,1751014239042,-264.98772848,0.00019451,2]
[368064096,1751014239052,-460.0,0.00019451,2]
[368064098,1751014239062,-460.0,0.00019451,2]
[368064100,1751014239072,-460.09060134,0.00019451,2]
[368064102,1751014239081,-500.0,0.00019451,2]
[368064104,1751014239091,-460.0,0.00019451,2]
[368064106,1751014239101,-495.59785271,0.00019451,2]
[368064108,1751014239111,-460.0,0.00019451,2]
[368064109,1751014239120,-500.0,0.00019451,2]
[368064111,1751014239130,-912.94,0.00019451,2]
[368064113,1751014239140,-460.0,0.00019451,2]
[368064115,1751014239149,-460.0,0.00019451,2]
[368064117,1751014239159,-460.0,0.00019451,2]
[368064119,1751014239169,-460.0,0.00019451,2]
[368064121,1751014239178,-460.0,0.00019451,2]
[368064123,1751014239188,-460.0,0.00019451,2]
[368064125,1751014239197,-1000.0,0.00019451,2]
[368064127,1751014239206,-460.0,0.00019451,2]
[368064129,1751014239216,-460.0,0.00019451,2]
[368064131,1751014239225,-460.0,0.00019451,2]
[368064132,1751014239234,-465.57555808,0.00019451,2]
[368064134,1751014239244,-460.0,0.00019451,2]
[368064136,1751014239253,-466.04061526,0.00019451,2]
[368064138,1751014239263,-465.40040219,0.00019451,2]
[368064140,1751014239272,-460.0,0.00019451,2]
[368064142,1751014239281,-460.0,0.00019451,2]
[368064144,1751014239291,-460.0,0.00019451,2]
[368064146,1751014239304,-460.0,0.00019451,2]
[368064148,1751014239313,-719.85,0.00019451,2]
[368064150,1751014239322,-719.85,0.00019451,2]
[368064151,1751014239331,-460.0,0.00019452,2]
[368064153,1751014239343,-460.0,0.00019452,2]
[368064155,1751014239352,-486.61,0.00019452,2]
[368064157,1751014239363,-460.0,0.00019452,2]
[368064159,1751014239372,-398.63005472,0.00019452,2]
[368064161,1751014239382,-296.48581044,0.00019452,2]
[368064163,1751014239392,-460.0,0.00019452,2]
[368064165,1751014239402,-460.0,0.00019452,2]
[368064167,1751014239412,-460.0,0.00019452,2]
[368064169,1751014239421,-460.0,0.00019452,2]
[368064171,1751014239435,-501.96289045,0.00019452,2]
[368064173,1751014239445,-460.0,0.00019452,2]
[368064175,1751014239454,-460.0,0.00019452,2]
[368064177,1751014239464,-213.03,0.00019452,2]
[368064179,1751014239473,-460.0,0.00019452,2]
[368064181,1751014239482,-460.0,0.00019452,2]
[368064183,1751014239491,-460.0,0.00019452,2]
[368064185,1751014239500,-460.0,0.00019452,2]
[368064187,1751014239511,-460.0,0.00019452,2]
[368064189,1751014239520,-460.0,0.00019452,2]
[368064190,1751014239530,-585.68024075,0.00019452,2]
[368064192,1751014239539,-460.0,0.00019452,2]
[368064194,1751014239549,-460.0,0.00019452,2]
[368064196,1751014239559,-460.0,0.00019452,2]
[368064198,1751014239569,-460.0,0.00019452,2]
[368064200,1751014239578,-460.0,0.00019452,2]
[368064202,1751014239588,-460.0,0.00019452,2]
[368064204,1751014239597,-460.0,0.00019452,2]
[368064206,1751014239606,-638.32,0.00019452,2]
[368064208,1751014239616,-540.0,0.00019452,2]
[368064210,1751014239626,-460.0,0.00019452,2]
[368064211,1751014239635,-460.0,0.00019452,2]
[368064213,1751014239644,-566.54,0.00019452,2]
[368064215,1751014239657,-460.0,0.00019452,2]
[368064217,1751014239667,-460.0,0.00019452,2]
[368064219,1751014239676,-460.0,0.00019452,2]
[368064221,1751014239685,-460.0,0.00019452,2]
[368064223,1751014239695,-460.0,0.00019452,2]
[368064225,1751014239704,-460.0,0.00019452,2]
[368064227,1751014239714,-460.0,0.00019452,2]
[368064229,1751014239723,-460.0,0.00019452,2]
[368064231,1751014239733,-184.76156487,0.00019452,2]
[368064233,1751014239742,-460.0,0.00019452,2]
[368064235,1751014239752,-1700.78,0.00019452,2]
[368064236,1751014239762,-612.76228089,0.00019452,2]
[368064259,1751014239935,-413.300005,0.00019452,2]
[368064261,1751014239949,-0.64771411,0.00019452,2]
[368064263,1751014239959,-460.0,0.00019452,2]
[368064265,1751014239969,-22.60911029,0.00019452,2]
[368064267,1751014239981,-134.38623226,0.00019452,2]
[368064269,1751014239991,-966.02,0.00019452,2]
[368064271,1751014240000,-460.0,0.00019452,2]
[368064273,1751014240011,-460.0,0.00019452,2]
[368064275,1751014240021,-486.13,0.00019452,2]
[368064277,1751014240031,-786.82,0.00019452,2]
[368064279,1751014240040,-460.0,0.00019452,2]
[368064281,1751014240050,-163.66091457,0.00019452,2]
[368064283,1751014240059,-460.0,0.00019452,2]
[368064285,1751014240069,-460.0,0.00019452,2]
[368064287,1751014240079,-3869.97,0.00019452,2]
[368064289,1751014240089,-1671.8,0.00019452,2]
[368064291,1751014240099,-460.0,0.00019452,2]
[368064293,1751014240109,-563.77,0.00019452,2]
[368064295,1751014240118,-586.39,0.00019452,2]
[368064297,1751014240128,-333.81923705,0.00019452,2]
[368064299,1751014240137,-633.35,0.00019452,2]
[368064301,1751014240146,-482.85,0.00019452,2]
[368064302,1751014240155,-3453.57,0.00019452,2]
[368064304,1751014240164,-460.0,0.00019452,2]
[368064306,1751014240174,-460.0,0.00019452,2]
[368064308,1751014240184,-1237.61,0.00019452,2]
[368064310,1751014240193,-460.0,0.00019452,2]
[368064312,1751014240202,-460.0,0.00019452,2]
[368064314,1751014240212,-637.17,0.00019452,2]
[368064316,1751014240221,-541.7,0.00019452,2]
[368064317,1751014240231,-460.0,0.00019452,2]
[368064319,1751014240240,-460.0,0.00019452,2]
[368064321,1751014240249,-829.77,0.00019452,2]
[368064323,1751014240260,-1994.54,0.00019452,2]
[368064325,1751014240269,-490.48,0.00019452,2]
[368064327,1751014240279,-539.96754572,0.00019452,2]
[368064329,1751014240291,-460.0,0.00019452,2]
[368064331,1751014240304,-3690.44,0.00019452,2]
[368064333,1751014240314,-460.0,0.00019452,2]
[368064335,1751014240324,-460.0,0.00019452,2]
[368064336,1751014240334,-460.0,0.00019452,2]
[368064337,1751014240344,-460.0,0.00019452,2]
[368064338,1751014240354,-497.34,0.00019452,2]
[368064339,1751014240364,-1155.72,0.00019452,2]
[368064340,1751014240375,-460.0,0.00019452,2]
[368064341,1751014240384,-460.0,0.00019452,2]
[368064342,1751014240393,-486.11,0.00019452,2]
[368064343,1751014240403,-460.0,0.00019452,2]
[368064344,1751014240413,-460.0,0.00019452,2]
[368064345,1751014240423,-2940.89,0.00019452,2]
[368064346,1751014240433,-674.15,0.00019452,2]
[368064347,1751014240443,-460.0,0.00019452,2]
[368064348,1751014240453,-3831.23,0.00019452,2]
[368064349,1751014240462,-460.0,0.00019452,2]
[368064350,1751014240472,-460.0,0.00019452,2]
[368064351,1751014240482,-653.95,0.00019452,2]
[368064352,1751014240492,-545.9,0.00019452,2]
[368064353,1751014240501,-7274.1,0.00019452,2]
[368064354,1751014240512,-460.0,0.00019452,2]
[368064355,1751014240522,-2330.44,0.00019452,2]
[368064356,1751014240531,-460.0,0.00019452,2]
[368064357,1751014240541,-460.0,0.00019452,2]
[368064358,1751014240552,-460.0,0.00019452,2]
[368064359,1751014240562,-460.0,0.00019452,2]
[368064360,1751014240572,-460.0,0.00019452,2]
[368064361,1751014240581,-460.0,0.00019452,2]
[368064362,1751014240590,-2777.8,0.00019452,2]
[368064363,1751014240600,-460.0,0.00019452,2]
[368064364,1751014240610,-460.0,0.00019452,2]
[368064365,1751014240619,-1803.2,0.00019452,2]
[368064366,1751014240629,-460.0,0.00019452,2]
[368064367,1751014240639,-719.85,0.00019623,2]
[368064368,1751014240650,-500.0,0.00019667,2]
[368064369,1751014240660,-500.0,0.00019667,2]
[368064370,1751014240670,-500.0,0.00019667,2]
[368064371,1751014240680,-500.0,0.00019667,2]
[368064372,1751014240690,-500.0,0.00019667,2]
[368064373,1751014240699,-719.85,0.00019724,2]
[368064374,1751014240708,-460.0,0.00019725,2]
[368064375,1751014240718,-460.0,0.00019725,2]
[368064376,1751014240727,-500.0,0.00019725,2]
[368064377,1751014240737,-552.43,0.00019725,2]
[368064378,1751014240747,-912.94,0.00019725,2]
[368064379,1751014240756,-460.0,0.00019725,2]
[368064380,1751014240765,-1000.0,0.00019725,2]
[368064381,1751014240775,-460.0,0.00019725,2]
[368064383,1751014240784,-460.0,0.00019725,2]
[368064385,1751014240794,-400.34292741,0.00019725,2]
[368064387,1751014240803,-460.0,0.00019725,2]
[368064389,1751014240815,-460.0,0.00019725,2]
[368064391,1751014240825,-719.85,0.00019725,2]
[368064393,1751014240834,-719.85,0.00019725,2]
[368064395,1751014240843,-486.61,0.00019726,2]
[368064397,1751014240852,-580.0,0.00019726,2]
[368064399,1751014240861,-536.1470737,0.00019726,2]
[368064401,1751014240871,-460.0,0.00019726,2]
[368064403,1751014240880,-460.0,0.00019726,2]
[368064405,1751014240889,-460.0,0.00019726,2]
[368064407,1751014240898,-460.0,0.00019726,2]
[368064409,1751014240907,-460.0,0.00019726,2]
[368064411,1751014240917,-458.42417325,0.00019726,2]
[368064413,1751014240926,-460.0,0.00019726,2]
[368064415,1751014240935,-460.0,0.00019726,2]
[368064417,1751014240944,-460.0,0.00019726,2]
[368064419,1751014240952,-460.0,0.00019726,2]
[368064421,1751014240962,-460.0,0.00019726,2]
[368064423,1751014240971,-460.0,0.00019726,2]
[368064425,1751014240980,-638.32,0.00019726,2]
[368064427,1751014240990,-460.0,0.00019726,2]
[368064429,1751014240998,-460.0,0.00019726,2]
[368064431,1751014241008,-460.0,0.00019726,2]
[368064433,1751014241018,-460.0,0.00019726,2]
[368064435,1751014241027,-460.0,0.00019726,2]
[368064437,1751014241036,-460.0,0.00019726,2]
[368064439,1751014241045,-460.0,0.00019726,2]
[368064441,1751014241054,-460.0,0.00019726,2]
[368064442,1751014241063,-460.0,0.00019726,2]
[368064444,1751014241072,-460.0,0.00019726,2]
[368064446,1751014241081,-1700.78,0.00019726,2]
[368064448,1751014241090,-1026.71,0.00019726,2]
[368064450,1751014241099,-460.0,0.00019726,2]
[368064452,1751014241109,-966.02,0.00019726,2]
[368064454,1751014241118,-460.0,0.00019726,2]
[368064456,1751014241128,-460.0,0.00019726,2]
[368064458,1751014241139,-486.13,0.00019726,2]
[368064460,1751014241150,-786.82,0.00019726,2]
[368064462,1751014241159,-460.0,0.00019726,2]
[368064464,1751014241168,-471.94992726,0.00019726,2]
[368064466,1751014241178,-3869.97,0.00019726,2]
[368064468,1751014241188,-1671.8,0.00019726,2]
[368064470,1751014241199,-460.0,0.00019726,2]
[368064472,1751014241208,-563.77,0.00019726,2]
[368064474,1751014241218,-586.39,0.00019726,2]
[368064476,1751014241228,-633.35,0.00019726,2]
[368064478,1751014241238,-482.85,0.00019726,2]
[368064480,1751014241248,-3453.57,0.00019726,2]
[368064482,1751014241258,-460.0,0.00019726,2]
[368064484,1751014241268,-1237.61,0.00019726,2]
[368064486,1751014241277,-460.0,0.00019726,2]
[368064488,1751014241286,-637.17,0.00019726,2]
[368064490,1751014241300,-541.7,0.00019726,2]
[368064492,1751014241309,-460.0,0.00019726,2]
[368064494,1751014241319,-460.0,0.00019726,2]
[368064497,1751014241330,-829.77,0.00019726,2]
[368064498,1751014241341,-1994.54,0.00019726,2]
[368064500,1751014241350,-460.0,0.00019726,2]
[368064502,1751014241359,-3690.44,0.00019726,2]
[368064504,1751014241370,-460.0,0.00019726,2]
[368064506,1751014241380,-460.0,0.00019726,2]
[368064508,1751014241390,-460.0,0.00019726,2]
[368064511,1751014241400,-497.34,0.00019726,2]
[368064513,1751014241411,-1155.72,0.00019726,2]
[368064514,1751014241420,-460.0,0.00019726,2]
[368064516,1751014241430,-460.0,0.00019726,2]
[368064518,1751014241439,-486.11,0.00019726,2]
[368064521,1751014241449,-492.66165379,0.00019726,2]
[368064523,1751014241459,-2940.89,0.00019726,2]
[368064525,1751014241469,-674.15,0.00019726,2]
[368064527,1751014241480,-460.0,0.00019726,2]
[368064529,1751014241489,-3831.23,0.00019726,2]
[368064531,1751014241499,-460.0,0.00019726,2]
[368064533,1751014241509,-653.95,0.00019726,2]
[368064535,1751014241519,-545.9,0.00019726,2]
[368064537,1751014241528,-7274.1,0.00019726,2]
[368064538,1751014241538,-460.0,0.00019726,2]
[368064540,1751014241547,-2330.44,0.00019726,2]
[368064543,1751014241557,-460.0,0.00019726,2]
[368064544,1751014241567,-460.0,0.00019726,2]